Cogmind - Beta 13 @@@ ROGUE MODE // 2024.05.16 @ 22:47:30 Player: Gabe+Kate4EVR Result: Destroyed by S-43 Plague with Heavy Machine Gun Performance ------------- Evolutions (9) 4500 Regions Visited (18) 3600 Robots Destroyed (67) 335 Value Destroyed (1997) 1997 Prototype IDs (8) 160 Alien Tech Used (2) 400 Bonus (5862) 5862 TOTAL SCORE: 16854 Bonus ------- High Alert Combat Kills 618 Follower Combat Kills 1536 Entered DSFs 1000 Used Core Reset Matrix 3000 Friendly Fire -292 Cogmind --------- Core Integrity 0/1600 Matter 300/300 Energy 98/100 System Corruption 0% Temperature Cool (0) Movement Core (50) Location -1/Access Parts ------- > --- POWER (2) -------- (None) > --- PROPULSION (11) -- (None) > --- UTILITY (8) ------ Improved Armor Integrity Analyzer Improved Armor Integrity Analyzer Graphene Brace > --- WEAPON (4) ------- (None) > --- INVENTORY (5) ---- (None) Peak State ------------ > --- POWER ------------ Light Particle Reactor > --- PROPULSION ------- Improved Cesium-ion Thruster Nuclear Pulse Array Nuclear Pulse Array Field Propulsion Array Q-thruster Impulse Thruster Array > --- UTILITY ---------- Improved Armor Integrity Analyzer Improved Armor Integrity Analyzer Improved Armor Integrity Analyzer Improved Armor Integrity Analyzer Graphene Brace Advanced Corruption Screen > --- WEAPON ----------- Gamma Rifle > --- INVENTORY -------- Neutrino Core Neutrino Core Micro Antimatter Reactor [Rating: 128] Favorites ----------- Power Heavy Ion Engine Engine Heavy Ion Engine Power Core Neutrino Core Reactor Antimatter Reactor Propulsion Improved Titanium Leg Leg Improved Titanium Leg Hover Unit Airjet Flight Unit Nuclear Pulse Array Utility Improved Cooling System Device Improved Cooling System Storage Medium Storage Unit Processor Improved Armor Integrity Analyzer Protection Propulsion Shielding Weapon Heavy Beamcaster Energy Gun Heavy Beamcaster Energy Cannon Advanced Plasma Cannon Ballistic Gun Light Assault Rifle Ballistic Cannon Gauss Cannon Launcher Scatter Rocket Array Build | -11 -10 -9 -8 -7 -7 -7 -7 -6 -5 -5 -5 -4 -4 -3 -2 -2 -2 -1 ------- Run | Yrd Mat Mat Mat Fac Was Fac DSF Fac Fac Upp Upp Fac DSF Res Res Qua Sec Acc Slots Evolved 18 | . . 2 2 2 . . . 2 2 . . 2 . 2 2 . . 2 Power 1 | . . . 1 . . . . . . . . . . . . . . . Propulsion 9 | . . 2 1 . . . . . . . . 2 . 2 2 . . . Utility 6 | . . . . . . . . 2 2 . . . . . . . . 2 Weapon 2 | . . . . 2 . . . . . . . . . . . . . . Parts Attached 111 | 7 12 13 21 . 9 . 2 11 15 . . . 3 7 3 3 . 5 Power 22 | 1 1 . 6 . 3 . . 2 2 . . . 2 1 1 . . 3 Engine 7 | 1 1 . 5 . . . . . . . . . . . . . . . Core 7 | . . . 1 . . . . . 2 . . . 2 . . . . 2 Reactor 8 | . . . . . 3 . . 2 . . . . . 1 1 . . 1 Propulsion 43 | 2 8 10 5 . . . 2 4 5 . . . 1 1 2 1 . 2 Treads . | . . . . . . . . . . . . . . . . . . . Leg 19 | 2 6 . 5 . . . 2 2 2 . . . . . . . . . Wheel . | . . . . . . . . . . . . . . . . . . . Hover 5 | . . 5 . . . . . . . . . . . . . . . . Flight 19 | . 2 5 . . . . . 2 3 . . . 1 1 2 1 . 2 Utility 20 | 1 2 2 2 . . . . 4 3 . . . . 5 . 1 . . Device 10 | . . 1 1 . . . . 4 3 . . . . 1 . . . . Storage 3 | 1 1 . 1 . . . . . . . . . . . . . . . Processor 5 | . . . . . . . . . . . . . . 4 . 1 . . Hackware . | . . . . . . . . . . . . . . . . . . . Protection 2 | . 1 1 . . . . . . . . . . . . . . . . Artifact . | . . . . . . . . . . . . . . . . . . . Weapon 26 | 3 1 1 8 . 6 . . 1 5 . . . . . . 1 . . Energy Gun 13 | . . 1 4 . 4 . . 1 2 . . . . . . 1 . . Energy Cannon 1 | . . . . . . . . . 1 . . . . . . . . . Ballistic Gun 5 | 3 1 . 1 . . . . . . . . . . . . . . . Ballistic Cannon 5 | . . . 3 . 2 . . . . . . . . . . . . . Launcher 2 | . . . . . . . . . 2 . . . . . . . . . Special Weapon . | . . . . . . . . . . . . . . . . . . . Impact Weapon . | . . . . . . . . . . . . . . . . . . . Slashing Weapon . | . . . . . . . . . . . . . . . . . . . Piercing Weapon . | . . . . . . . . . . . . . . . . . . . Special Melee Weapon . | . . . . . . . . . . . . . . . . . . . Unidentified Prototypes 9 | . . . 4 . . . . 1 2 . . . . . . 1 . 1 Corrupted Parts 1 | . . . . . . . . . 1 . . . . . . . . . System Corruption 10 | . . . . . . . . . 10 . . . . . . . . . Parts Lost 47 | . 1 3 8 . . . . . 16 . . . . 1 3 2 . 13 Power 9 | . . . 3 . . . . . 1 . . . . . 1 . . 4 Propulsion 20 | . . 3 3 . . . . . 4 . . . . 1 1 2 . 6 Utility 11 | . . . 2 . . . . . 6 . . . . . 1 . . 2 Weapon 7 | . 1 . . . . . . . 5 . . . . . . . . 1 Highest Loss Streak 11 | . 1 3 5 . . . . . 11 . . . . 1 4 1 . 11 To Critical Strikes . | . . . . . . . . . . . . . . . . . . . Average Slot Usage (%) 77 | . 94 74 81 76 91 . 99 96 90 23 23 21 32 42 53 52 47 34 Engine 5 | . 14 11 9 7 7 . 7 6 3 . . . . . . . . . Core 1 | . . . 3 7 3 . . . 1 . . . 7 7 2 . . 1 Reactor 2 | . . . . . 3 . 7 5 3 . . . . 1 5 4 4 1 Leg 20 | . 26 . 27 30 30 . 37 32 26 . . . . . . . . . Hover 1 | . . 15 8 . . . . . . . . . . . . . . . Flight 5 | . 1 24 . . . . . . . 17 17 15 19 23 21 22 17 10 Device 10 | . . 6 7 7 7 . 7 17 24 5 5 5 5 4 5 4 4 4 Storage 6 | . 22 7 6 7 7 . 7 6 4 . . . . . . . . . Processor 2 | . . . . . . . . . . . . . . 3 17 17 17 14 Energy Gun 10 | . . 3 4 7 15 . 30 25 20 . . . . . . 3 4 2 Ballistic Gun 4 | . 25 2 1 7 4 . . . . . . . . . . . . . Ballistic Cannon 2 | . . . 11 . 9 . . . . . . . . . . . . . Naked Turns . | . . . . . . . . . . . . . . . . . . . Heaviest Build 65 | 13 23 15 34 32 57 56 56 62 65 1 1 1 29 30 35 21 21 35 Greatest Support 95 | 20 20 38 72 72 72 72 90 95 90 32 26 26 39 52 69 71 50 50 Greatest Overweight (x) 7 | . 5 . . . . . . 7 3 . . . . . . . . 1 Average Overweight (x) . | . . . . . . . . . . . . . . . . . . . Largest Inventory Capacity 10 | 8 10 10 10 10 10 10 10 10 10 5 5 5 5 5 5 5 5 5 Average Capacity 8 | 6 9 8 8 10 10 10 10 10 9 5 5 5 5 5 5 5 5 5 Most Carried 10 | 6 10 10 10 10 10 10 10 10 10 5 5 5 5 3 4 4 3 3 Average Carried 7 | 2 9 6 7 10 8 10 9 9 9 5 5 5 3 2 3 3 3 1 Final Capacity 10 | 8 10 5 10 10 10 10 10 10 5 5 5 5 5 5 5 5 5 5 Final Carried 10 | 6 10 4 10 10 10 10 10 10 5 5 5 5 4 3 4 3 3 . Class Distribution -------------------- 39% | Mutant 25% | Derelict-Gunner 19% | Sprinter 4% | Scavenger-Gunner 4% | Gunner 3% | Scavenger-Tank Dominant Class ---------------- Mutant | -10/Materials Mutant | -9/Materials Mutant | -8/Materials Mutant | -7/Factory Derelict-Gunner | -7/Waste Derelict-Gunner | -7/Factory Derelict-Gunner | -7/DSF Derelict-Gunner | -6/Factory Derelict-Gunner | -5/Factory Sprinter | -5/Upper Caves Mutant | -5/Upper Caves Mutant | -4/Factory Mutant | -4/DSF Sprinter | -3/Research Sprinter | -2/Research Sprinter | -2/Quarantine Sprinter | -2/Section 7 Mutant | -1/Access Resources | -11 -10 -9 -8 -7 -7 -7 -7 -6 -5 -5 -5 -4 -4 -3 -2 -2 -2 -1 ----------- Run | Yrd Mat Mat Mat Fac Was Fac DSF Fac Fac Upp Upp Fac DSF Res Res Qua Sec Acc Matter Collected 1694 | 188 243 16 724 . 90 . 20 76 112 . 27 . . 40 . 10 . 148 Remotely 40 | . . . . . . . . . . . . . . 40 . . . . Salvage Created 2613 | . 451 16 651 . . . . 561 934 . . . . . . . . . Parts 102 | . 25 2 42 . . . . 9 24 . . . . . . . . . Haulers Intercepted 9 | . 2 . 3 . . . . 1 3 . . . . . . . . . Recyclers Shooed 2 | . . . 1 . . . . 1 . . . . . . . . . . Parts Field Recycled . | . . . . . . . . . . . . . . . . . . . Retrieved Matter . | . . . . . . . . . . . . . . . . . . . Parts Self-Destructed 1 | . . . . . . . . . . 1 . . . . . . . . Prevented 1 | . . . . . . . . . . 1 . . . . . . . . Kills | -11 -10 -9 -8 -7 -7 -7 -7 -6 -5 -5 -5 -4 -4 -3 -2 -2 -2 -1 ------- Run | Yrd Mat Mat Mat Fac Was Fac DSF Fac Fac Upp Upp Fac DSF Res Res Qua Sec Acc Combat Hostiles Destroyed 44 | . 10 . 16 . . . . 1 17 . . . . . . . . . Melee 1 | . . . . . . . . . 1 . . . . . . . . . Guns 23 | . 10 . 2 . . . . 1 10 . . . . . . . . . Cannons 14 | . . . 12 . . . . . 2 . . . . . . . . . AOE 5 | . . . 2 . . . . . 3 . . . . . . . . . Classes Destroyed 11 | . 4 . 4 . . . . . 3 . . . . . . . . . Worker 3 | . . . 2 . . . . . 1 . . . . . . . . . Builder 3 | . 1 1 1 . . . . . . . . . . . . . . . Hauler 9 | . 2 . 3 . . . . 1 3 . . . . . . . . . Recycler 5 | . . . 2 . . . . 3 . . . . . . . . . . Watcher 2 | . . . 1 . . . . . 1 . . . . . . . . . Swarmer 14 | . 3 . 8 . . . . . 3 . . . . . . . . . Cutter 4 | . . . . . . . . . 4 . . . . . . . . . Saboteur 1 | . . . . . . . . . 1 . . . . . . . . . Grunt 20 | . 7 . 6 . . . . 1 6 . . . . . . . . . Sentry 4 | . . . 2 . . . . . 2 . . . . . . . . . Programmer 1 | . . . . . . . . . 1 . . . . . . . . . Wasp 1 | . . . . . . . . 1 . . . . . . . . . . Best Kill Streak 7 | . 4 1 6 . . . . 2 7 . . . . . . . . . Combat Bots Only 7 | . 4 . 5 . . . . 1 7 . . . . . . . . . Max Kills in Single Turn 3 | . 1 1 2 . . . . 1 3 . . . . . . . . . Gunslinging 1 | . . . 1 . . . . . 1 . . . . . . . . . Exploded 3 | . . . 2 . . . . . 3 . . . . . . . . . Melee 1 | . . . . . . . . . 1 . . . . . . . . . Uniques/NPCs Destroyed . | . . . . . . . . . . . . . . . . . . . Combat | -11 -10 -9 -8 -7 -7 -7 -7 -6 -5 -5 -5 -4 -4 -3 -2 -2 -2 -1 -------- Run | Yrd Mat Mat Mat Fac Was Fac DSF Fac Fac Upp Upp Fac DSF Res Res Qua Sec Acc Hostile Shots Fired 743 | . 66 33 152 . . . . . 119 11 10 . 5 35 34 28 . 250 Missed 303 | . 20 15 39 . . . . . 39 5 6 . 3 20 20 17 . 119 Damage Taken 8338 | . 516 273 1384 . . . . 70 2299 97 50 . 84 441 421 303 . 2400 Core 2822 | . 72 101 288 . . . . 16 347 76 24 . . 186 31 75 . 1606 Absorbed by Shields . | . . . . . . . . . . . . . . . . . . . Redirected to Shielding 50 | . 3 . 47 . . . . . . . . . . . . . . . Regen/Repaired (Parts) 171 | . . . . . 124 . . 19 28 . . . . . . . . . Core Remaining (%) 81 | 100 71 74 47 . . . 100 98 . . 55 . 100 85 . . 85 . Volleys Fired 123 | . 40 1 37 . . . . 9 32 . . . . . . 4 . . Largest 4 | . 2 1 2 . . . . 4 4 . . . . . . 1 . . Hottest 324 | . 40 65 126 . . . . 324 324 . . . . . . 75 . . Shots Fired 301 | . 68 1 74 . . . . 36 118 . . . . . . 4 . . Gun 235 | . 68 1 12 . . . . 36 114 . . . . . . 4 . . Cannon 65 | . . . 62 . . . . . 3 . . . . . . . . . Launcher 1 | . . . . . . . . . 1 . . . . . . . . . Special . | . . . . . . . . . . . . . . . . . . . Kinetic 131 | . 68 . 63 . . . . . . . . . . . . . . . Thermal 164 | . . 1 10 . . . . 36 117 . . . . . . . . . Explosive 1 | . . . . . . . . . 1 . . . . . . . . . Electromagnetic 5 | . . . 1 . . . . . . . . . . . . 4 . . Robot Hit Streak 15 | . 12 5 7 . . . . 15 11 . . . . . . . . . Robot Miss Streak 7 | . 2 1 7 . . . . 3 3 . . . . . . . . . Penetration Max 1 | . . . 1 . . . . . . . . . . . . . . . Secondary Targets 4 | . . . 1 . . . . 1 2 . . . . . . . . . Max Gunslinging Chain 1 | . . . 1 . . . . 1 1 . . . . . . . . . Shots Hit Robots 192 | . 50 1 44 . . . . 25 72 . . . . . . . . . Core Hits 125 | . 26 4 28 . . . . 10 57 . . . . . . . . . Critical Kills . | . . . . . . . . . . . . . . . . . . . Critical Parts Destroyed . | . . . . . . . . . . . . . . . . . . . Critical Strikes 21 | . . . 12 . . . . 3 6 . . . . . . . . . Burn 9 | . . . . . . . . 3 6 . . . . . . . . . Blast 12 | . . . 12 . . . . . . . . . . . . . . . Melee Attacks . | . . . . . . . . . . . . . . . . . . . Impact . | . . . . . . . . . . . . . . . . . . . Slashing . | . . . . . . . . . . . . . . . . . . . Piercing . | . . . . . . . . . . . . . . . . . . . Sneak Attacks . | . . . . . . . . . . . . . . . . . . . Combat Hostiles . | . . . . . . . . . . . . . . . . . . . Follow-up Attacks . | . . . . . . . . . . . . . . . . . . . Damage Inflicted 5536 | . 506 20 1375 . . . . 752 2878 . . . . . . . . 5 Guns 3410 | . 503 20 107 . . . . 752 2028 . . . . . . . . . Cannons 1162 | . . . 1095 . . . . . 67 . . . . . . . . . Explosions 956 | . . . 173 . . . . . 783 . . . . . . . . . Melee . | . . . . . . . . . . . . . . . . . . . Ramming 8 | . 3 . . . . . . . . . . . . . . . . 5 Kinetic 1614 | . 503 . 1111 . . . . . . . . . . . . . . . Thermal 2958 | . . 20 91 . . . . 752 2095 . . . . . . . . . Explosive 956 | . . . 173 . . . . . 783 . . . . . . . . . Electromagnetic . | . . . . . . . . . . . . . . . . . . . Impact . | . . . . . . . . . . . . . . . . . . . Slashing . | . . . . . . . . . . . . . . . . . . . Piercing . | . . . . . . . . . . . . . . . . . . . Highest Corruption 15 | . . . . . . . . . 15 15 15 . . . . . . . Average Corruption 12 | . . . . . . . . . 12 15 15 . . . . . . . Corruption Purged . | . . . . . . . . . . . . . . . . . . . Corruption Blocked 1 | . . . . . . . . . . . . . . . . . . 1 Effects 30 | . . . . . . . . . 26 3 1 . . . . . . . Message Errors 7 | . . . . . . . . . 6 1 . . . . . . . . Matter Fused 6 | . . . . . . . . . 5 . 1 . . . . . . . Heat Flow Errors 2 | . . . . . . . . . 2 . . . . . . . . . Energy Discharges 7 | . . . . . . . . . 6 1 . . . . . . . . Parts Rejected 1 | . . . . . . . . . 1 . . . . . . . . . Parts Fused 1 | . . . . . . . . . 1 . . . . . . . . . Data Loss (minor) 1 | . . . . . . . . . 1 . . . . . . . . . Misfires 1 | . . . . . . . . . 1 . . . . . . . . . Misdirections 1 | . . . . . . . . . . 1 . . . . . . . . Weapon Failures 3 | . . . . . . . . . 3 . . . . . . . . . Overload Shots . | . . . . . . . . . . . . . . . . . . . Overflow Damage 33 | . . . 32 . . . . . 1 . . . . . . . . . Projectiles 32 | . . . 32 . . . . . . . . . . . . . . . Explosions 1 | . . . . . . . . . 1 . . . . . . . . . Melee . | . . . . . . . . . . . . . . . . . . . Knockbacks 10 | . . . 10 . . . . . . . . . . . . . . . Impact . | . . . . . . . . . . . . . . . . . . . Kinetic 9 | . . . 9 . . . . . . . . . . . . . . . Secondary 1 | . . . 1 . . . . . . . . . . . . . . . Self-Inflicted Damage 15 | . . . . . . . . . 13 . . . . . . . . 2 Shots 1 | . . . . . . . . . 1 . . . . . . . . . Rammed 1 | . . . . . . . . . . . . . . . . . . 1 Targets Rammed 2 | . 1 . . . . . . . . . . . . . . . . 1 Kicked 1 | . 1 . . . . . . . . . . . . . . . . . Crushed . | . . . . . . . . . . . . . . . . . . . Highest Temperature 378 | . 18 26 265 . . . . 378 209 . . . . 4 43 . . . Average Temperature 77 | . 8 12 105 . . . . 133 40 . . . . 4 27 . . . Received Heat Transfer 1290 | . 219 99 495 . . . . 9 309 12 . . . 30 27 36 . 54 Effects 1 | . . . 1 . . . . . . . . . . . . . . . Interference 1 | . . . 1 . . . . . . . . . . . . . . . Siege Activations . | . . . . . . . . . . . . . . . . . . . Robots Corrupted . | . . . . . . . . . . . . . . . . . . . Combat Hostiles . | . . . . . . . . . . . . . . . . . . . Parts Fried . | . . . . . . . . . . . . . . . . . . . Impact Corruptions 1 | . . . 1 . . . . . . . . . . . . . . . Robots Melted 2 | . . . . . . . . . 2 . . . . . . . . . Combat Hostiles 1 | . . . . . . . . . 1 . . . . . . . . . Parts Melted 14 | . . . . . . . . 6 8 . . . . . . . . . Heat Transferred 4864 | . . 25 151 . . . . 1221 3467 . . . . . . . . . Parts Sabotaged 3 | . . . . . . . . . 3 . . . . . . . . . Parts Stolen . | . . . . . . . . . . . . . . . . . . . Parts Stripped . | . . . . . . . . . . . . . . . . . . . Power Chain Reactions . | . . . . . . . . . . . . . . . . . . . Alert | -11 -10 -9 -8 -7 -7 -7 -7 -6 -5 -5 -5 -4 -4 -3 -2 -2 -2 -1 ------- Run | Yrd Mat Mat Mat Fac Was Fac DSF Fac Fac Upp Upp Fac DSF Res Res Qua Sec Acc Peak Influence 1531 | . 349 148 626 200 76 53 419 741 1531 . . 494 349 440 382 374 210 560 Initial 494 | . . 68 62 200 70 53 37 219 362 . . 494 349 195 247 214 210 125 Average 410 | . 197 108 380 200 74 53 188 410 1007 . . 494 349 253 299 267 210 273 Maximum Alert Level 4 | . 1 . 2 1 . . 2 3 4 . . 2 1 2 1 1 1 2 Low Security (%) 32 | 100 47 100 19 . 100 100 57 6 . . . . . 53 . . . 45 Level 1 36 | . 52 . 23 100 . . 20 55 25 . . . 100 38 100 100 100 27 Level 2 15 | . . . 57 . . . 22 25 2 . . 100 . 8 . . . 27 Level 3 4 | . . . . . . . . 12 17 . . . . . . . . . Level 4 11 | . . . . . . . . . 54 . . . . . . . . . Level 5 . | . . . . . . . . . . . . . . . . . . . High Security . | . . . . . . . . . . . . . . . . . . . Max Security . | . . . . . . . . . . . . . . . . . . . Squads Dispatched 27 | . 2 1 2 . . . 1 2 11 . . . . 2 1 3 . 2 Investigation 5 | . . . . . . . . . 1 . . . . 1 . 3 . . Extermination 3 | . . . . . . . . . 2 . . . . . . . . 1 Reinforcement 15 | . 2 1 2 . . . 1 2 4 . . . . 1 1 . . 1 Assault 2 | . . . . . . . . . 2 . . . . . . . . . Garrison 2 | . . . . . . . . . 2 . . . . . . . . . Intercept . | . . . . . . . . . . . . . . . . . . . Searches Triggered . | . . . . . . . . . . . . . . . . . . . Construction Impeded 1 | . . . 1 . . . . . . . . . . . . . . . Haulers Reinforced 3 | . . . . . . . . 1 2 . . . . . . . . . Active Scanning Responses . | . . . . . . . . . . . . . . . . . . . Cargo Convoy Interrupts . | . . . . . . . . . . . . . . . . . . . Stealth | -11 -10 -9 -8 -7 -7 -7 -7 -6 -5 -5 -5 -4 -4 -3 -2 -2 -2 -1 --------- Run | Yrd Mat Mat Mat Fac Was Fac DSF Fac Fac Upp Upp Fac DSF Res Res Qua Sec Acc Distress Signals 10 | . 2 2 . . . . . 1 2 . . . . 1 . 1 . 1 Communications Jammed . | . . . . . . . . . . . . . . . . . . . Distress Signals . | . . . . . . . . . . . . . . . . . . . Times Spotted 209 | . 17 6 25 . . . 3 13 37 4 4 . 1 21 17 16 . 45 Peak Tracking Total 21 | . 6 7 7 . . . 3 4 14 4 4 . 1 10 14 6 1 21 Tactical Retreats 24 | . . 1 2 . . . . . 2 1 . . . 4 2 3 . 9 Traps | -11 -10 -9 -8 -7 -7 -7 -7 -6 -5 -5 -5 -4 -4 -3 -2 -2 -2 -1 ------- Run | Yrd Mat Mat Mat Fac Was Fac DSF Fac Fac Upp Upp Fac DSF Res Res Qua Sec Acc Traps Triggered 7 | . . . . 1 . . . 2 1 . . . 1 . . 2 . . Indirectly . | . . . . . . . . . . . . . . . . . . . Trap Hack Attempts . | . . . . . . . . . . . . . . . . . . . Triggered . | . . . . . . . . . . . . . . . . . . . Disarmed . | . . . . . . . . . . . . . . . . . . . Reprogrammed . | . . . . . . . . . . . . . . . . . . . Reused . | . . . . . . . . . . . . . . . . . . . Traps Extracted . | . . . . . . . . . . . . . . . . . . . Installed . | . . . . . . . . . . . . . . . . . . . Triggered 1 | . . . . . . . . . . 1 . . . . . . . . Machines | -11 -10 -9 -8 -7 -7 -7 -7 -6 -5 -5 -5 -4 -4 -3 -2 -2 -2 -1 ---------- Run | Yrd Mat Mat Mat Fac Was Fac DSF Fac Fac Upp Upp Fac DSF Res Res Qua Sec Acc Machines Disabled 17 | . 1 . 3 . . . 1 5 6 . . . . . . 1 . . Max in Single Turn 1 | . 1 . 1 . . . . . 1 . . . . . . 1 . . Garrison Access 1 | . . . . . . . . . 1 . . . . . . . . . Machines Repaired . | . . . . . . . . . . . . . . . . . . . Machines Dismantled . | . . . . . . . . . . . . . . . . . . . Machines Sabotaged . | . . . . . . . . . . . . . . . . . . . Overloaded Fab Kills . | . . . . . . . . . . . . . . . . . . . Hacking | -11 -10 -9 -8 -7 -7 -7 -7 -6 -5 -5 -5 -4 -4 -3 -2 -2 -2 -1 --------- Run | Yrd Mat Mat Mat Fac Was Fac DSF Fac Fac Upp Upp Fac DSF Res Res Qua Sec Acc Machines Accessed 14 | . . 1 . . . 1 . 1 4 . . 1 . 2 . 3 . 1 Terminals 11 | . . . . . . 1 . 1 2 . . 1 . 2 . 3 . 1 Fabricators 2 | . . . . . . . . . 2 . . . . . . . . . Repair Stations 1 | . . 1 . . . . . . . . . . . . . . . . Recycling Units . | . . . . . . . . . . . . . . . . . . . Scanalyzers . | . . . . . . . . . . . . . . . . . . . Garrison Access . | . . . . . . . . . . . . . . . . . . . Total Hacks 31 | . . 3 . . . 1 . 3 8 . . 1 . 5 . 8 . 2 Successful 10 | . . . . . . 1 . 2 4 . . 1 . 1 . 1 . . Failed 21 | . . 3 . . . . . 1 4 . . . . 4 . 7 . 2 Catastrophic 4 | . . . . . . . . 1 . . . . . . . 2 . 1 Database Lockouts . | . . . . . . . . . . . . . . . . . . . Manual 12 | . . . . . . . . 3 5 . . . . 3 . . . 1 Terminals 24 | . . . . . . 1 . 3 4 . . 1 . 5 . 8 . 2 Fabricators 4 | . . . . . . . . . 4 . . . . . . . . . Repair Stations 3 | . . 3 . . . . . . . . . . . . . . . . Recycling Units . | . . . . . . . . . . . . . . . . . . . Scanalyzers . | . . . . . . . . . . . . . . . . . . . Garrison Access . | . . . . . . . . . . . . . . . . . . . Terminal Hacks 7 | . . . . . . 1 . 2 1 . . 1 . 1 . 1 . . Record 1 | . . . . . . . . . . . . . . . . 1 . . Open DSF 3 | . . . . . . 1 . . . . . 1 . 1 . . . . Unreport Threat 3 | . . . . . . . . 2 1 . . . . . . . . . Fabricator Hacks 2 | . . . . . . . . . 2 . . . . . . . . . Network Status 1 | . . . . . . . . . 1 . . . . . . . . . Build 1 | . . . . . . . . . 1 . . . . . . . . . Repair Station Hacks . | . . . . . . . . . . . . . . . . . . . Recycling Unit Hacks . | . . . . . . . . . . . . . . . . . . . Scanalyzer . | . . . . . . . . . . . . . . . . . . . Garrison Access Hacks . | . . . . . . . . . . . . . . . . . . . Unauthorized Hacks 1 | . . . . . . . . . 1 . . . . . . . . . Terminals . | . . . . . . . . . . . . . . . . . . . Fabricators 1 | . . . . . . . . . 1 . . . . . . . . . Haulers 1 | . . . . . . . . . 1 . . . . . . . . . Repair Stations . | . . . . . . . . . . . . . . . . . . . Recycling Units . | . . . . . . . . . . . . . . . . . . . Scanalyzers . | . . . . . . . . . . . . . . . . . . . Garrison Access . | . . . . . . . . . . . . . . . . . . . Data Cores Recovered . | . . . . . . . . . . . . . . . . . . . Used . | . . . . . . . . . . . . . . . . . . . Hacking Detections 11 | . . 1 . . . 1 . 1 3 . . . . 2 . 2 . 1 Full Trace Events 5 | . . 1 . . . . . . 1 . . . . 1 . 2 . . Feedback Events . | . . . . . . . . . . . . . . . . . . . Feedback Blocked . | . . . . . . . . . . . . . . . . . . . Robot Schematics Acquired . | . . . . . . . . . . . . . . . . . . . Robots Built 1 | . . . . . . . . . 1 . . . . . . . . . Authchips . | . . . . . . . . . . . . . . . . . . . Time 76 | . . . . . . . . . 76 . . . . . . . . . Total Robot Build Rating 5 | . . . . . . . . . 5 . . . . . . . . . Part Schematics Acquired . | . . . . . . . . . . . . . . . . . . . Parts Built . | . . . . . . . . . . . . . . . . . . . Authchips . | . . . . . . . . . . . . . . . . . . . Time . | . . . . . . . . . . . . . . . . . . . Total Part Build Rating . | . . . . . . . . . . . . . . . . . . . Parts Repaired . | . . . . . . . . . . . . . . . . . . . Time . | . . . . . . . . . . . . . . . . . . . Parts Recycled . | . . . . . . . . . . . . . . . . . . . Recycled Matter . | . . . . . . . . . . . . . . . . . . . Retrieved Matter . | . . . . . . . . . . . . . . . . . . . Retrieved Components . | . . . . . . . . . . . . . . . . . . . Parts Scanalyzed . | . . . . . . . . . . . . . . . . . . . Part Schematics Acquired . | . . . . . . . . . . . . . . . . . . . Parts Damaged . | . . . . . . . . . . . . . . . . . . . Bothacking | -11 -10 -9 -8 -7 -7 -7 -7 -6 -5 -5 -5 -4 -4 -3 -2 -2 -2 -1 ------------ Run | Yrd Mat Mat Mat Fac Was Fac DSF Fac Fac Upp Upp Fac DSF Res Res Qua Sec Acc Used RIF Installer . | . . . . . . . . . . . . . . . . . . . Robots Hacked . | . . . . . . . . . . . . . . . . . . . Non-combat . | . . . . . . . . . . . . . . . . . . . Combat . | . . . . . . . . . . . . . . . . . . . Robot Hacks Applied . | . . . . . . . . . . . . . . . . . . . Relay Couplers Released 5 | . . . . . . . . . 5 . . . . . . . . . Machine Destruction 2 | . . . . . . . . . 2 . . . . . . . . . Programmers 3 | . . . . . . . . . 3 . . . . . . . . . Fabnet Peak Effective % . | . . . . . . . . . . . . . . . . . . . Robots Rewired . | . . . . . . . . . . . . . . . . . . . Allies Hacked . | . . . . . . . . . . . . . . . . . . . Hacks Repelled . | . . . . . . . . . . . . . . . . . . . Allies | -11 -10 -9 -8 -7 -7 -7 -7 -6 -5 -5 -5 -4 -4 -3 -2 -2 -2 -1 -------- Run | Yrd Mat Mat Mat Fac Was Fac DSF Fac Fac Upp Upp Fac DSF Res Res Qua Sec Acc Total Allies 28 | . . . . . 20 . . . 1 . . . . . . . . 7 Largest Group 20 | . . . . . 20 . 20 20 16 . . . . . . . . 7 Highest-Rated Group 534 | . . . . . 533 . 534 534 475 . . . . . . . . 104 Highest-Rated Ally 35 | . . . . . 35 . 35 35 35 . . . . . . . . 15 Total Orders . | . . . . . . . . . . . . . . . . . . . Ally Attacks 246 | . . . . . 3 . 35 103 97 . . . . . . . . 8 Total Damage 7405 | . . . . . 182 . 1153 2234 3571 . . . . . . . . 265 Kills 49 | . . . . . 1 . 7 15 23 . . . . . . . . 3 Allies Corrupted 3 | . . . . . . . . . 3 . . . . . . . . . Allies Melted . | . . . . . . . . . . . . . . . . . . . Intel | -11 -10 -9 -8 -7 -7 -7 -7 -6 -5 -5 -5 -4 -4 -3 -2 -2 -2 -1 ------- Run | Yrd Mat Mat Mat Fac Was Fac DSF Fac Fac Upp Upp Fac DSF Res Res Qua Sec Acc Robot Analysis Total . | . . . . . . . . . . . . . . . . . . . Derelict Logs Recovered 2 | . . . . . . . . . . 1 1 . . . . . . . Drone Launches . | . . . . . . . . . . . . . . . . . . . Drone Recoveries . | . . . . . . . . . . . . . . . . . . . Exploration | -11 -10 -9 -8 -7 -7 -7 -7 -6 -5 -5 -5 -4 -4 -3 -2 -2 -2 -1 ------------- Run | Yrd Mat Mat Mat Fac Was Fac DSF Fac Fac Upp Upp Fac DSF Res Res Qua Sec Acc Turns Passed 3628 | 81 455 98 533 22 330 4 149 331 735 51 15 10 44 196 69 212 36 257 Spaces Moved 4246 | 57 195 169 356 19 245 4 107 209 495 155 41 26 85 383 234 662 114 690 Core 51 | 3 . . . . . . . . 4 . . . . . . . . 44 Treads . | . . . . . . . . . . . . . . . . . . . Legs 1431 | 54 188 . 228 19 245 4 107 208 378 . . . . . . . . . Wheels . | . . . . . . . . . . . . . . . . . . . Hover 207 | . . 79 128 . . . . . . . . . . . . . . . Flight 2557 | . 7 90 . . . . . 1 113 155 41 26 85 383 234 662 114 646 Fastest Speed 25 | 50 120 31 48 120 120 120 120 126 32 32 37 37 34 31 25 25 31 31 Average Speed 64 | 116 152 40 96 120 120 120 125 127 104 32 37 37 34 31 27 27 31 33 Slowest Speed 530 | 120 440 56 130 120 120 120 126 530 200 32 37 37 37 34 29 31 31 106 Overloaded Moves . | . . . . . . . . . . . . . . . . . . . Propulsion Burnouts . | . . . . . . . . . . . . . . . . . . . Robots Hopped 55 | . . 1 . . . . . . . 1 5 . 1 8 6 7 . 26 Cave-ins Triggered . | . . . . . . . . . . . . . . . . . . . Teleports 1 | . . . . . . . . . . . . . . . . 1 . . Exploration Rate (%) 31 | 4 33 23 31 2 93 . 90 8 19 34 6 2 84 17 14 71 9 25 Regions Visited 18 Branch Regions 4 Pre-discovered Areas . | . . . . . . . . . . . . . . . . . . . Known Exits Taken 3 | . . . . . . 1 . . . 1 . 1 . . . . . . Unknown Exits Taken 11 | 1 1 1 1 . . . . 1 1 . 1 . . 1 1 1 1 . Scrap Searched 1 | . . . . . . . . . . . 1 . . . . . . . Spaces Dug . | . . . . . . . . . . . . . . . . . . . Terrain Destroyed 76 | . . . 30 . . . . 6 40 . . . . . . . . . Melee . | . . . . . . . . . . . . . . . . . . . Projectile 35 | . . . 26 . . . . 6 3 . . . . . . . . . AOE 41 | . . . 4 . . . . . 37 . . . . . . . . . Terrain Rammed . | . . . . . . . . . . . . . . . . . . . Walls Destroyed . | . . . . . . . . . . . . . . . . . . . Machines Disabled . | . . . . . . . . . . . . . . . . . . . Actions | -11 -10 -9 -8 -7 -7 -7 -7 -6 -5 -5 -5 -4 -4 -3 -2 -2 -2 -1 --------- Run | Yrd Mat Mat Mat Fac Was Fac DSF Fac Fac Upp Upp Fac DSF Res Res Qua Sec Acc Total 4822 | 68 301 198 473 19 281 3 123 253 635 154 35 25 96 448 230 680 113 687 Wait 267 | . 23 3 30 . 19 . 6 9 76 1 . . 1 67 . 15 . 17 Move 4127 | 56 194 166 355 19 244 3 106 208 494 152 32 25 82 367 222 647 113 642 Hop 47 | . . 1 . . . . . . . 1 3 . 1 7 5 7 . 22 Pick Up 57 | 5 14 5 12 . 2 . 4 6 8 . . . 1 . . . . . Fast Attach 62 | 6 4 . 19 . 4 . 1 8 5 . . . 2 5 2 4 . 2 Attach 24 | . 1 8 . . 2 . . 1 6 . . . 1 1 . 1 . 3 Detach 5 | . 1 2 1 . . . . . . . . . . . . 1 . . Swap 27 | 1 7 5 2 . 3 . 1 2 4 . . . . 1 1 . . . Drop 72 | . 16 7 17 . 7 . 5 10 10 . . . . . . . . . Fire 123 | . 40 1 37 . . . . 9 32 . . . . . . 4 . . Melee . | . . . . . . . . . . . . . . . . . . . Ram 1 | . . . . . . . . . . . . . . . . . . 1 Kick 1 | . 1 . . . . . . . . . . . . . . . . . Crush . | . . . . . . . . . . . . . . . . . . . Escape Stasis 9 | . . . . . . . . . . . . . 8 . . 1 . . Rewire . | . . . . . . . . . . . . . . . . . . . Trap . | . . . . . . . . . . . . . . . . . . . Miscellaneous . | . . . . . . . . . . . . . . . . . . . Route ------- -11/Scrapyard -10/Materials -9/Materials -8/Materials -7/Factory -7/Waste -7/Factory -7/DSF -6/Factory -5/Factory -5/Upper Caves -5/Upper Caves -4/Factory -4/DSF -3/Research -2/Research -2/Quarantine -2/Section 7 -1/Access History --------- Turn | Location | Event 28 | -11/Scrapyard | Discovered new exit (range 16) 82 | -11/Scrapyard | Entered Materials 355 | -10/Materials | Build established: Mutant 522 | -10/Materials | Discovered new exit (range 11) 537 | -10/Materials | Entered another Materials area 537 | -9/Materials | Evolved 2 slots: Propulsion x2 610 | -9/Materials | Lost 3 parts (3n) 630 | -9/Materials | Discovered new exit (range 8) 635 | -9/Materials | Entered another Materials area 635 | -8/Materials | Evolved 2 slots: Power x1, Propulsion x1 773 | -8/Materials | Lost 5 parts (3n2u) 967 | -8/Materials | Core integrity fell below 50% 1156 | -8/Materials | Discovered new exit (range 8) 1168 | -8/Materials | Entered Factory 1168 | -7/Factory | Evolved 2 slots: Weapon x2 1190 | -7/Factory | Sucked down chute 1190 | -7/Factory | Entered Waste 1191 | -7/Waste | Joined by Warlord forces that had cleared the area 1290 | -7/Waste | A Compactor rumbled back to life 1290 | -7/Waste | Spotted C-40 Crusher 1290 | -7/Waste | Allies destroyed C-40 Crusher 1329 | -7/Waste | Discovered new exit (range 12) 1520 | -7/Waste | Entered Factory 1520 | -7/Factory | Accompanied by 20 allies 1524 | -7/Factory | Identified exit to DSF 1524 | -7/Factory | Entered DSF 1524 | -7/DSF | Accompanied by 20 allies 1572 | -7/DSF | Additional patrols routed to DSF 1650 | -7/DSF | Discovered new exit (range 12) 1659 | -7/DSF | Build established: Derelict-Gunner 1673 | -7/DSF | Entered Factory 1673 | -6/Factory | Accompanied by 20 allies 1673 | -6/Factory | Evolved 2 slots: Utility x2 1962 | -6/Factory | Discovered new exit (range 15) 2004 | -6/Factory | Entered another Factory area 2004 | -5/Factory | Accompanied by 16 allies 2004 | -5/Factory | Evolved 2 slots: Utility x2 2261 | -5/Factory | System corruption reached 10% 2278 | -5/Factory | Lost 8 allies 2353 | -5/Factory | Fabricated R-10 Processor (x1) 2385 | -5/Factory | Garrison activated, responded to threat 2442 | -5/Factory | Lost 7 allies 2604 | -5/Factory | First assault squad dispatched 2614 | -5/Factory | Found Prototype Launcher 2643 | -5/Factory | Lost 3 parts (1n1u1w) 2661 | -5/Factory | Identified Scatter Rocket Array 2698 | -5/Factory | Destroyed 7 combat bots 2720 | -5/Factory | Lost 11 parts (1p3n3u4w) 2729 | -5/Factory | Discovered new exit (range 14) 2739 | -5/Factory | Entered Upper Caves 2762 | -5/Upper Caves | Encountered a Warlord checkpoint 2765 | -5/Upper Caves | Identified exit to Upper Caves 2777 | -5/Upper Caves | Spotted B-75 Beast 2790 | -5/Upper Caves | Entered another Upper Caves area 2791 | -5/Upper Caves | Discovered new exit (range 10) 2798 | -5/Upper Caves | Learned Factory trap positions 2805 | -5/Upper Caves | Entered Factory 2805 | -4/Factory | Evolved 2 slots: Propulsion x2 2806 | -4/Factory | Loaded intel: 97 trap records 2815 | -4/Factory | Identified exit to DSF 2815 | -4/Factory | Entered DSF 2836 | -4/DSF | Additional patrols routed to DSF 2846 | -4/DSF | Discovered new exit (range 15) 2859 | -4/DSF | Entered Research 2859 | -3/Research | Evolved 2 slots: Propulsion x2 3050 | -3/Research | Discovered new exit (range 14) 3055 | -3/Research | Entered another Research area 3055 | -2/Research | Evolved 2 slots: Propulsion x2 3118 | -2/Research | Spotted B-90 Cyclops 3121 | -2/Research | Discovered new exit (range 10) 3121 | -2/Research | Spotted B-90 Cyclops 3124 | -2/Research | Entered Quarantine 3154 | -2/Quarantine | Lost 4 parts (1p2n1u) 3159 | -2/Quarantine | Found Alien Artifact 3159 | -2/Quarantine | Identified Core Reset Matrix 3159 | -2/Quarantine | Used Core Reset Matrix 3163 | -2/Quarantine | Detected hypermatrix surge 3163 | -2/Quarantine | Sensed 11 artifacts in vicinity 3189 | -2/Quarantine | Build established: Sprinter 3224 | -2/Quarantine | Found Hpw. Transdimensional Reconstructor 3224 | -2/Quarantine | Warped through subspace 3312 | -2/Quarantine | Spotted Fortress 3334 | -2/Quarantine | Discovered new exit (range 6) 3336 | -2/Quarantine | Entered Section 7 3337 | -2/Section 7 | Sensed 20 artifacts in vicinity 3363 | -2/Section 7 | Spotted S7 Guard 3371 | -2/Section 7 | Discovered new exit (range 3) 3372 | -2/Section 7 | Entered Access 3372 | -1/Access | Evolved 2 slots: Utility x2 3425 | -1/Access | Spotted B-99 Colossus 3584 | -1/Access | Spotted B-99 Colossus 3584 | -1/Access | Spotted B-99 Colossus 3593 | -1/Access | Core integrity fell below 50% 3600 | -1/Access | Emitted hypermatrix ping 3605 | -1/Access | Assembled emerged from beneath the floor 3612 | -1/Access | Core integrity fell below 20% 3627 | -1/Access | Lost 11 parts (3p5n2u1w) 3629 | -1/Access | Destroyed by S-43 Plague with Heavy Machine Gun Last Messages --------------- 03605_ Slug penetrates as-87566. 03605_ Slug penetrates as-94694. 03605_ as-94694 destroyed. 03605_ Slug penetrates as-87566. 03607_ as-36588 sneak attacks. 03609_ Slug penetrates as-36588. 03609_ as-36588 suffers critical hit (Destroy). 03609_ as-36588 destroyed. 03609_ Slug penetrates as-26384. 03609_ as-26384 destroyed. 03609_ as-87566 destroyed. 03609_ Slug penetrates Sealed Heavy Doors. 03610_ Acquired 20 matter. 03611_ Acquired 19 matter. 03611_ Slug penetrates Sealed Heavy Doors. 03612_ Penetrated by Slug. 03612_ Slug penetrates Reinforced Barrier. 03622_ ALERT: Rogue bot located, Programmers report to Access Zone 6K. 03626_ Slug penetrates Sealed Heavy Doors. 03627_ Penetrated by Slug. Map ----- +----------------------------------------------------+ | ?? ??????????????????????? ""??????????????? | | ?? ?????????????????????## ?? "???????????????? | | ###+############################"###+#### ??????? | | % ??????? | | ?????? | | #####+########## ########## ?????? | | ???????????????# #????????# ?????? | | ???????????????# #???????## ###########???????? | | ???????????????# #???????#" ##????????????????? | | ???????????????# #?????#### ####??????????????? | | ???????????????# #?????# #??????????????? | | ???????????????# #?????# #??????????????? | | ???????????????? ??????# #??????????????? | | ???????????????? ??????# % #??????????????? | | ???????????????? ??????# =% #??????????????? | | ???????????????? ??????# *%%* #??????????????? | | ???????????????? ??????# %%%%% #??????????????? | | ???????????????? ??????#"""""%""""#??????????????? | | ????##+##??????? ????????" " "?????????????????? | | #### #????????????????"% """"?????????????????? | | #??????????????#"" """""""#??????????????? | | ????????# sl #??????????????? | | +### ###????????????# """""" #??????????????? | | ## ###?????????????# "????" #??????????????? | | ## ## ?????????????# "????" #??????????????? | | ]] ## ## ?????????????# @"????" #??????????????? | | ]] ## ## ????????????# "????" #??????????????? | | ] ## ## ????????????# """""" #??????????????? | | ## ## ????????????# #??????????????? | | ## ## ???????"????# #??????????????? | | / ## """"" ""???""""""""""""??????????????? | | ## ## """"" Y"?????????????????????????????? | | ## ## """"" "??????????????????????????????? | | ## #? """"" ???????????????????????????????? | | ## #? ?????????????????????????????????? | | ##### #?? ??????????????????????????????????? | | ???## ##? ???????????????????????????????????? | | ???# = ###+############"" ?????????????????? | | ???# " ?????????????????? | | ???# " ?????????????????? | | ???# #######/#########????????????????????????? | | ???####### #???????????????????????????? | | ###??????# #????? ????????????????????? | | #??????# #???? ] ?? ???????????????? | | # #??????# #???? ? ???????????????? | | # ######## #???? ? ????????????????? | | # / #???? ?????????????????? | | # ##### #???? ??????????????????? | | # #???##############???[ "???????????????????? | | + #???# #??? "????????????????????? | +----------------------------------------------------+ Best States ------------- Heat Dissipation 108 Energy Generation 43 Energy Capacity 530 Matter Stores 300 Matter Capacity 300 Sight Range 16 Terrain Scan Density 10 Additional Mass Support 6 Corruption Block 20 Propulsion Shielding 33 Evasion (%) 65 Armor Integrity Analysis 40 Particle Charging 22 Item Schematics ----------------- None Robot Schematics ------------------ None Fabricated ------------ R-10 Processor | x1 | -5/Factory | Preloaded Alien Tech Used ----------------- Core Reset Matrix High-powered Transdimensional Reconstructor Achievements -------------- Nope We Are Legion Challenges ------------ None Game ------ Seed CombatConcussiveCompactor Manual? 0 Play Time 00:42:36 Cumulative 168.1 hours Start 2024.05.16 @ 22:06:37 End 2024.05.16 @ 22:47:30 Sessions 1 Manual Loads 0 Difficulty Rogue Special Mode None Game No. 334 Rogue 334 Adventurer 0 Explorer 0 Win Type - Total 0 Types 0/0/0/0/0/0/0/0/0 Lore% 46 Gallery% 63 Achievement% 45 Wizard Run 0 Options --------- Layout 0 ASCII 0 Keyboard 1 Movement Numpad Keybinds 0 Fullscreen 2 Font 18/X11 Map View 76x50 Zoom Use 0% Tactical HUD 1 Map Filters NONE Filters NONE Steam 1 RUN: 257226bf-49b6-489a-ad0a-091f90dec726